[Event "Amsterdam Chess Open 2024"]
[Site "Amsterdam"]
[Date "2024.11.01"]
[Round "1.17"]
[White "Migliorero, Lorenzo"]
[Black "Heij, Jacco"]
[Result "0-1"]
[ECO "C78"]
[WhiteElo "1874"]
[BlackElo "1979"]
[Annotator "RC"]
[PlyCount "64"]
[EventDate "2024.10.31"]
[EventType "swiss"]
[EventCountry "NED"]
[SourceTitle "playchess.com"]
[Source "ChessBase"]
[SourceQuality "1"]
[TimeControl "5400+30"]

1. e4 {[%emt 0:00:06]} e5 {[%emt 0:00:05]} 2. Nf3 {[%emt 0:00:21]} Nc6 {[%emt 0:00:06]} 3. Bb5 {[%emt 0:00:15]} a6 {[%emt 0:00:08]} 4. Ba4 {[%emt 0:00:28]} Nf6 {[%emt 0:00:07]} 5. d3 {[%emt 0:00:45]} b5 {[%emt 0:00:55]} 6. Bb3 {[%emt 0:00:19]} Bc5 {[%emt 0:02:46]} 7. O-O {[%emt 0:02:30]} d6 {[%emt 0:00:49]} 8. c3 {[%emt 0:00:55]} O-O {[%emt 0:03:32]} 9. Nbd2 {[%emt 0:02:06]} h6 {[%emt 0:01:25]} 10. a4 {[%emt 0:03:01]} Bb7 {[%emt 0:04:55]} 11. h3 {[%emt 0:07:39]} Bb6 {[%emt 0:12:18]} 12. Re1 {[%emt 0:03:50]} Na5 {[%emt 0:04:17]} 13. Bc2 {[%emt 0:06:17]} c5 {[%emt 0:00:47]} 14. Nf1 {[%emt 0:01:40]} Re8 {[%emt 0:03:57]} 15. Ng3 {[%emt 0:07:04]} Nc6 {[%emt 0:03:24]} 16. axb5 {[%emt 0:05:30]} axb5 {[%emt 0:00:19]} 17. Rxa8 {[%emt 0:00:09]} Bxa8 {[%emt 0:00:58]} 18. Be3 {[%emt 0:07:20]} Qc7 {[%emt 0:17:07]} 19. Nf5 {[%emt 0:09:08]} Ne7 {[%emt 0:02:34]} 20. Nxe7+ {[%emt 0:02:27]} Rxe7 {[%emt 0:03:17]} 21. Nh4 {[%emt 0:01:09]} d5 {[%emt 0:03:37]} 22. Nf5 {[%emt 0:03:49]} Re8 {[%emt 0:02:45]} 23. Qf3 {[%emt 0:04:05]} Qc6 {[%emt 0:05:50]} 24. Qg3 {[%emt 0:07:03]} Nh5 {[%emt 0:02:18]} 25. Qg4 {[%emt 0:02:09]} dxe4 {[%emt 0:07:15]} 26. Qxh5 {[%emt 0:05:44]} g6 {[%emt 0:03:26]} 27. Nxh6+ {[%emt 0:05:25]} Kh7 {[%emt 0:04:11]} 28. Qg4 {[%emt 0:04:53]} f5 {[%emt 0:01:18]} 29. Qg5 {[%emt 0:01:27]} Bd8 {[%emt 0:01:06]} 30. Qg3 {[%emt 0:01:38]} f4 {[%emt 0:00:36]} 31. Bxf4 {[%emt 0:00:38]} exf4 {[%emt 0:00:14]} 32. Qxf4 {[%emt 0:01:37]} exd3 {[%emt 0:01:04]} 0-1

[Event "Amsterdam Chess Open 2024"]
[Site "Amsterdam"]
[Date "2024.11.01"]
[Round "1.18"]
[White "Arp, Frans"]
[Black "Harkanyi, Adam"]
[Result "1/2-1/2"]
[ECO "B73"]
[WhiteElo "1975"]
[BlackElo "1872"]
[Annotator "RC"]
[PlyCount "159"]
[EventDate "2024.10.31"]
[EventType "swiss"]
[EventCountry "NED"]
[SourceTitle "playchess.com"]
[Source "ChessBase"]
[SourceQuality "1"]
[TimeControl "5400+30"]

1. e4 {[%emt 0:00:04]} c5 {[%emt 0:00:07]} 2. Nf3 {[%emt 0:00:06]} d6 {[%emt 0:00:07]} 3. d4 {[%emt 0:00:11]} cxd4 {[%emt 0:00:06]} 4. Nxd4 {[%emt 0:00:08]} Nf6 {[%emt 0:00:06]} 5. Nc3 {[%emt 0:00:08]} g6 {[%emt 0:00:09]} 6. Be2 {[%emt 0:00:32]} Bg7 {[%emt 0:00:18]} 7. Be3 {[%emt 0:00:08]} Nc6 {[%emt 0:00:07]} 8. O-O {[%emt 0:00:40]} O-O {[%emt 0:00:06]} 9. Kh1 {[%emt 0:00:47]} a6 {[%emt 0:03:11]} 10. f4 {[%emt 0:02:40]} Bd7 {[%emt 0:03:55]} 11. Nxc6 {[%emt 0:02:16]} Bxc6 {[%emt 0:02:28]} 12. Bf3 {[%emt 0:00:40]} Nd7 {[%emt 0:04:29]} 13. Qd2 {[%emt 0:04:35]} Re8 {[%emt 0:05:13]} 14. Rad1 {[%emt 0:00:17]} Rc8 {[%emt 0:03:06]} 15. e5 {[%emt 0:00:27]} Bxf3 {[%emt 0:00:43]} 16. Rxf3 {[%emt 0:00:10]} Qa5 {[%emt 0:01:42]} 17. Qf2 {[%emt 0:01:55]} Nc5 {[%emt 0:04:11]} 18. Bxc5 {[%emt 0:06:40]} Qxc5 {[%emt 0:01:34]} 19. Qxc5 {[%emt 0:00:18]} Rxc5 {[%emt 0:00:20]} 20. exd6 {[%emt 0:01:50]} exd6 {[%emt 0:00:22]} 21. g3 {[%emt 0:00:26]} Bxc3 {[%emt 0:01:21]} 22. bxc3 {[%emt 0:00:12]} Re2 {[%emt 0:00:15]} 23. a4 {[%emt 0:08:45]} Rc4 {[%emt 0:05:38]} 24. Rd4 {[%emt 0:00:59]} Rxd4 {[%emt 0:00:15]} 25. cxd4 {[%emt 0:00:16]} Rxc2 {[%emt 0:00:10]} 26. Rb3 {[%emt 0:00:51]} Rc4 {[%emt 0:00:17]} 27. Rxb7 {[%emt 0:00:52]} Rxa4 {[%emt 0:00:16]} 28. Rb6 {[%emt 0:00:24]} Rxd4 {[%emt 0:00:30]} 29. Rxa6 {[%emt 0:00:11]} Rd2 {[%emt 0:00:09]} 30. g4 {[%emt 0:01:44]} d5 {[%emt 0:00:35]} 31. Ra8+ {[%emt 0:02:01]} Kg7 {[%emt 0:00:07]} 32. g5 {[%emt 0:00:16]} d4 {[%emt 0:00:39]} 33. Rd8 {[%emt 0:00:16]} d3 {[%emt 0:00:40]} 34. Kg1 {[%emt 0:00:17]} Rd1+ {[%emt 0:01:29]} 35. Kg2 {[%emt 0:00:18]} h6 {[%emt 0:00:57]} 36. h3 {[%emt 0:00:58]} Rd2+ {[%emt 0:01:18]} 37. Kg1 {[%emt 0:00:30]} h5 {[%emt 0:00:42]} 38. h4 {[%emt 0:01:01]} Rd1+ {[%emt 0:00:42]} 39. Kg2 {[%emt 0:00:12]} d2 {[%emt 0:00:41]} 40. Kh2 {[%emt 0:00:39]} Rf1 {[%emt 0:00:30]} 41. Rxd2 {[%emt 0:00:12]} Rxf4 {[%emt 0:00:06]} 42. Kh3 {[%emt 0:00:14]} Kf8 {[%emt 0:02:17]} 43. Rd7 {[%emt 0:00:30]} Ke8 {[%emt 0:00:11]} 44. Ra7 {[%emt 0:00:11]} Rd4 {[%emt 0:00:26]} 45. Kg3 {[%emt 0:00:58]} Rd7 {[%emt 0:00:36]} 46. Ra6 {[%emt 0:01:08]} Ke7 {[%emt 0:00:08]} 47. Rf6 {[%emt 0:01:41]} Rd3+ {[%emt 0:00:41]} 48. Kg2 {[%emt 0:02:16]} Rd6 {[%emt 0:00:24]} 49. Rf4 {[%emt 0:00:52]} f6 {[%emt 0:00:30]} 50. gxf6+ {[%emt 0:00:15]} Rxf6 {[%emt 0:00:06]} 51. Kf3 {[%emt 0:02:17]} Rf5 {[%emt 0:02:32]} 52. Kg3 {[%emt 0:00:29]} Ke6 {[%emt 0:00:43]} 53. Ra4 {[%emt 0:00:20]} Rb5 {[%emt 0:03:05]} 54. Kf4 {[%emt 0:00:43]} Rb3 {[%emt 0:02:17]} 55. Ra6+ {[%emt 0:00:20]} Kf7 {[%emt 0:00:27]} 56. Ra7+ {[%emt 0:00:35]} Kf6 {[%emt 0:00:29]} 57. Ra6+ {[%emt 0:00:32]} Kg7 {[%emt 0:00:13]} 58. Ra4 {[%emt 0:03:02]} Rh3 {[%emt 0:03:27]} 59. Ke5 {[%emt 0:00:22]} Kh6 {[%emt 0:02:27]} 60. Rb4 {[%emt 0:00:11]} Rg3 {[%emt 0:00:33]} 61. Ra4 {[%emt 0:00:30]} Rg1 {[%emt 0:01:54]} 62. Rb4 {[%emt 0:00:42]} Rf1 {[%emt 0:01:16]} 63. Ra4 {[%emt 0:02:07]} Rf5+ {[%emt 0:00:40]} 64. Ke4 {[%emt 0:00:48]} Rf6 {[%emt 0:00:19]} 65. Ra5 {[%emt 0:00:35]} Rb6 {[%emt 0:00:30]} 66. Kf3 {[%emt 0:00:57]} Kg7 {[%emt 0:00:30]} 67. Kg3 {[%emt 0:00:41]} Kf6 {[%emt 0:00:12]} 68. Ra3 {[%emt 0:00:21]} Rb5 {[%emt 0:03:49]} 69. Ra6+ {[%emt 0:01:18]} Kf5 {[%emt 0:00:59]} 70. Ra3 {[%emt 0:00:12]} Rc5 {[%emt 0:00:53]} 71. Rb3 {[%emt 0:00:37]} g5 {[%emt 0:00:16]} 72. hxg5 {[%emt 0:00:18]} Kxg5 {[%emt 0:00:07]} 73. Kh3 {[%emt 0:00:16]} h4 {[%emt 0:01:10]} 74. Ra3 {[%emt 0:00:13]} Kh5 {[%emt 0:01:39]} 75. Rb3 {[%emt 0:00:14]} Rd5 {[%emt 0:00:29]} 76. Ra3 {[%emt 0:00:10]} Kg5 {[%emt 0:00:50]} 77. Rb3 {[%emt 0:00:50]} Rd4 {[%emt 0:00:36]} 78. Rb5+ {[%emt 0:00:25]} Kg6 {[%emt 0:00:33]} 79. Ra5 {[%emt 0:00:08]} Rc4 {[%emt 0:00:30]} 80. Ra1 {[%emt 0:00:24]} 1/2-1/2

[Event "Amsterdam Chess Open 2024"]
[Site "Amsterdam"]
[Date "2024.11.01"]
[Round "1.19"]
[White "Leentjens, Gilbert"]
[Black "Ahmed Wagdy"]
[Result "1-0"]
[ECO "B20"]
[WhiteElo "1872"]
[BlackElo "1973"]
[Annotator "RC"]
[PlyCount "83"]
[EventDate "2024.10.31"]
[EventType "swiss"]
[EventCountry "NED"]
[SourceTitle "playchess.com"]
[Source "ChessBase"]
[SourceQuality "1"]
[TimeControl "5400+30"]

1. e4 {[%emt 0:00:03]} c5 {[%emt 0:00:08]} 2. b4 {[%emt 0:00:09]} cxb4 {[%emt 0:00:23]} 3. a3 {[%emt 0:00:01]} Nc6 {[%emt 0:00:37]} 4. d4 {[%emt 0:00:19]} d5 {[%emt 0:01:04]} 5. e5 {[%emt 0:01:06]} Bf5 {[%emt 0:01:14]} 6. axb4 {[%emt 0:00:39]} Nxb4 {[%emt 0:01:08]} 7. Na3 {[%emt 0:00:29]} Rc8 {[%emt 0:08:08]} 8. Bb5+ {[%emt 0:01:37]} Bd7 {[%emt 0:00:23]} 9. Rb1 {[%emt 0:04:45]} e6 {[%emt 0:04:00]} 10. Qe2 {[%emt 0:30:16]} a6 {[%emt 0:04:54]} 11. Bd3 {[%emt 0:01:20]} Nxd3+ {[%emt 0:02:29]} 12. Qxd3 {[%emt 0:00:45]} Qa5+ {[%emt 0:00:54]} 13. Qd2 {[%emt 0:02:01]} Qxd2+ {[%emt 0:03:29]} 14. Kxd2 {[%emt 0:00:01]} b5 {[%emt 0:00:32]} 15. c3 {[%emt 0:00:18]} f6 {[%emt 0:03:48]} 16. f4 {[%emt 0:00:31]} h5 {[%emt 0:01:03]} 17. Nf3 {[%emt 0:03:13]} Be7 {[%emt 0:04:09]} 18. Nc2 {[%emt 0:02:39]} Nh6 {[%emt 0:01:58]} 19. Ra1 {[%emt 0:02:09]} Ra8 {[%emt 0:01:12]} 20. Ba3 {[%emt 0:01:03]} Ng4 {[%emt 0:01:54]} 21. Rhf1 {[%emt 0:04:59]} fxe5 {[%emt 0:05:56]} 22. dxe5 {[%emt 0:06:24]} Kf7 {[%emt 0:02:25]} 23. h3 {[%emt 0:05:12]} Nh6 {[%emt 0:01:01]} 24. Bxe7 {[%emt 0:14:05]} Kxe7 {[%emt 0:00:12]} 25. Ra5 {[%emt 0:00:02]} Rhb8 {[%emt 0:08:14]} 26. Nfd4 {[%emt 0:01:16]} Nf5 {[%emt 0:02:01]} 27. Nxf5+ {[%emt 0:03:15]} exf5 {[%emt 0:00:16]} 28. Nb4 {[%emt 0:00:39]} Kf7 {[%emt 0:15:08]} 29. Rfa1 {[%emt 0:01:35]} Be6 {[%emt 0:04:58]} 30. Rxa6 {[%emt 0:00:29]} Rxa6 {[%emt 0:00:38]} 31. Rxa6 {[%emt 0:00:03]} Bc8 {[%emt 0:02:38]} 32. Ra7+ {[%emt 0:05:41]} Rb7 {[%emt 0:01:32]} 33. Rxb7+ {[%emt 0:00:40]} Bxb7 {[%emt 0:00:07]} 34. g3 {[%emt 0:00:34]} Ke6 {[%emt 0:01:37]} 35. Ke3 {[%emt 0:00:17]} g6 {[%emt 0:02:24]} 36. h4 {[%emt 0:00:55]} Kd7 {[%emt 0:07:54]} 37. Kd4 {[%emt 0:00:39]} Bc6 {[%emt 0:01:29]} 38. Kc5 {[%emt 0:00:42]} Bb7 {[%emt 0:01:11]} 39. Kxb5 {[%emt 0:00:23]} Ke6 {[%emt 0:00:14]} 40. Kc5 {[%emt 0:00:24]} Ba8 {[%emt 0:00:33]} 41. Nc6 {[%emt 0:00:49]} Bb7 {[%emt 0:01:03]} 42. Nd8+ {[%emt 0:00:15]} 1-0

[Event "Amsterdam Chess Open 2024"]
[Site "Amsterdam"]
[Date "2024.11.01"]
[Round "1.20"]
[White "Knoop, Bram"]
[Black "Vintonyak, Yuriy"]
[Result "0-1"]
[ECO "B98"]
[WhiteElo "1972"]
[BlackElo "1872"]
[Annotator "RC"]
[PlyCount "64"]
[EventDate "2024.10.31"]
[EventType "swiss"]
[EventCountry "NED"]
[SourceTitle "playchess.com"]
[Source "ChessBase"]
[SourceQuality "1"]
[TimeControl "5400+30"]

1. e4 {[%emt 0:00:04]} c5 {[%emt 0:00:15]} 2. Nf3 {[%emt 0:00:15]} d6 {[%emt 0:00:04]} 3. d4 {[%emt 0:00:17]} cxd4 {[%emt 0:00:06]} 4. Nxd4 {[%emt 0:00:10]} Nf6 {[%emt 0:00:04]} 5. Nc3 {[%emt 0:00:15]} a6 {[%emt 0:00:05]} 6. Bg5 {[%emt 0:00:27]} e6 {[%emt 0:06:06]} 7. f4 {[%emt 0:00:29]} Be7 {[%emt 0:00:15]} 8. Qf3 {[%emt 0:01:24]} e5 {[%emt 0:04:33]} 9. Bxf6 {[%emt 0:06:22]} gxf6 {[%emt 0:01:20]} 10. Nf5 {[%emt 0:04:11]} Be6 {[%emt 0:05:50]} 11. Ng7+ {[%emt 0:05:43]} Kf8 {[%emt 0:00:16]} 12. Nxe6+ {[%emt 0:00:37]} fxe6 {[%emt 0:00:08]} 13. O-O-O {[%emt 0:07:35]} Qc8 {[%emt 0:04:30]} 14. f5 {[%emt 0:03:32]} b5 {[%emt 0:12:41]} 15. fxe6 {[%emt 0:01:27]} Qxe6 {[%emt 0:00:16]} 16. Nd5 {[%emt 0:05:42]} Bd8 {[%emt 0:03:33]} 17. g4 {[%emt 0:02:27]} Rg8 {[%emt 0:04:50]} 18. g5 {[%emt 0:07:46]} Rxg5 {[%emt 0:01:56]} 19. Bh3 {[%emt 0:00:26]} Qf7 {[%emt 0:00:18]} 20. Rhf1 {[%emt 0:05:14]} Kg7 {[%emt 0:00:58]} 21. Qa3 {[%emt 0:01:34]} Qf8 {[%emt 0:13:56]} 22. Ne3 {[%emt 0:05:03]} Nc6 {[%emt 0:03:21]} 23. Rxd6 {[%emt 0:06:53]} b4 {[%emt 0:07:14]} 24. Qd3 {[%emt 0:02:25]} Nd4 {[%emt 0:00:43]} 25. Rxa6 {[%emt 0:03:11]} Rxa6 {[%emt 0:02:19]} 26. Qxa6 {[%emt 0:00:14]} Qc5 {[%emt 0:00:38]} 27. Nf5+ {[%emt 0:03:02]} Rxf5 {[%emt 0:00:43]} 28. Rg1+ {[%emt 0:01:14]} Kh6 {[%emt 0:01:31]} 29. Qd3 {[%emt 0:01:04]} Nb3+ {[%emt 0:01:34]} 30. axb3 {[%emt 0:01:29]} Qxg1+ {[%emt 0:00:07]} 31. Qd1 {[%emt 0:00:32]} Qxd1+ {[%emt 0:00:23]} 32. Kxd1 {[%emt 0:00:09]} Rf2 {[%emt 0:00:12]} 0-1

[Event "Amsterdam Chess Open 2024"]
[Site "Amsterdam"]
[Date "2024.11.01"]
[Round "1.21"]
[White "Saricicek, Ahmet Furkan"]
[Black "Alexandrov, Matvey"]
[Result "1/2-1/2"]
[ECO "A80"]
[WhiteElo "1728"]
[BlackElo "1835"]
[Annotator "NA RC"]
[PlyCount "97"]
[EventDate "2024.10.31"]
[EventType "swiss"]
[EventCountry "NED"]
[SourceTitle "playchess.com"]
[Source "ChessBase"]
[SourceQuality "1"]
[TimeControl "5400+30"]

1. d4 {[%emt 0:00:30]} f5 {[%emt 0:00:32]} 2. Nf3 {[%emt 0:00:04]} Nf6 {[%emt 0:00:08]} 3. e3 {[%emt 0:00:07]} e6 {[%emt 0:01:09]} 4. Bd3 {[%emt 0:00:05]} b6 {[%emt 0:01:04]} 5. c4 {[%emt 0:02:05]} Bb4+ {[%emt 0:00:27]} 6. Bd2 {[%emt 0:00:50]} Bxd2+ {[%emt 0:00:33]} 7. Nbxd2 {[%emt 0:00:10]} Bb7 {[%emt 0:00:07]} 8. Qc2 {[%emt 0:00:15]} Nc6 {[%emt 0:05:35]} 9. a3 {[%emt 0:00:38]} Ne7 {[%emt 0:04:38]} 10. O-O {[%emt 0:01:32]} O-O {[%emt 0:00:23]} 11. Rac1 {[%emt 0:02:54]} Ng6 {[%emt 0:09:39]} 12. b4 {[%emt 0:03:36]} Qe7 {[%emt 0:01:53]} 13. Rfe1 {[%emt 0:10:15]} a5 {[%emt 0:02:58]} 14. c5 {[%emt 0:01:49]} Nd5 {[%emt 0:02:31]} 15. b5 {[%emt 0:07:24]} Rad8 {[%emt 0:02:07]} 16. Nc4 {[%emt 0:13:30]} d6 {[%emt 0:03:48]} 17. c6 {[%emt 0:02:06]} Bc8 {[%emt 0:00:46]} 18. Qb2 {[%emt 0:14:19]} Kh8 {[%emt 0:01:30]} 19. g3 {[%emt 0:01:12]} Qf6 {[%emt 0:01:35]} 20. Nfd2 {[%emt 0:17:05]} Nge7 {[%emt 0:12:37]} 21. e4 {[%emt 0:02:34]} fxe4 {[%emt 0:00:15]} 22. Nxe4 {[%emt 0:00:08]} Qh6 {[%emt 0:00:58]} 23. Nc3 {[%emt 0:02:09]} Nxc3 {[%emt 0:00:52]} 24. Rxc3 {[%emt 0:00:38]} Nd5 {[%emt 0:00:30]} 25. Rc2 {[%emt 0:00:13]} Qf6 {[%emt 0:05:49]} 26. Ne3 {[%emt 0:00:59]} Rde8 {[%emt 0:03:02]} 27. Rce2 {[%emt 0:01:19]} Nxe3 {[%emt 0:03:35]} 28. Rxe3 {[%emt 0:00:05]} e5 {[%emt 0:04:50]} 29. dxe5 {[%emt 0:03:21]} Rxe5 {[%emt 0:00:12]} 30. Rxe5 {[%emt 0:00:14]} dxe5 {[%emt 0:00:09]} 31. Rxe5 {[%emt 0:02:21]} Bh3 {[%emt 0:00:28]} 32. Qe2 {[%emt 0:03:44]} g6 {[%emt 0:01:59]} 33. f4 {[%emt 0:02:08]} Kg7 {[%emt 0:04:09]} 34. Qe3 {[%emt 0:02:39]} Qd6 {[%emt 0:02:18]} 35. Re7+ {[%emt 0:00:29]} Rf7 {[%emt 0:00:57]} 36. Qe5+ {[%emt 0:00:32]} Qxe5 {[%emt 0:00:19]} 37. Rxe5 {[%emt 0:00:10]} Kf6 {[%emt 0:00:32]} 38. Bf1 {[%emt 0:01:26]} Be6 {[%emt 0:01:56]} 39. Kf2 {[%emt 0:00:27]} Rf8 {[%emt 0:00:04]} 40. Ke3 {[%emt 0:00:14]} Rd8 {[%emt 0:00:08]} 41. Bd3 {[%emt 0:02:10]} Rd6 {[%emt 0:00:52]} 42. Be2 {[%emt 0:01:05]} h6 {[%emt 0:00:42]} 43. h4 {[%emt 0:00:19]} h5 {[%emt 0:06:11]} 44. Bd3 {[%emt 0:00:13]} Bf5 {[%emt 0:00:07]} 45. Bxf5 {[%emt 0:00:28]} gxf5 {[%emt 0:00:01]} 46. Re8 {[%emt 0:00:15]} Re6+ {[%emt 0:00:22]} 47. Rxe6+ {[%emt 0:00:23]} Kxe6 {[%emt 0:00:01]} 48. Kd4 {[%emt 0:00:19]} Kd6 {[%emt 0:00:14]} 49. a4 {[%emt 0:00:10]} 1/2-1/2

[Event "Amsterdam Chess Open 2024"]
[Site "Amsterdam"]
[Date "2024.11.01"]
[Round "1.22"]
[White "Lee, Jungbin"]
[Black "Scholten, Titus"]
[Result "1-0"]
[ECO "D32"]
[WhiteElo "1835"]
[BlackElo "1727"]
[Annotator "NA RC"]
[PlyCount "53"]
[EventDate "2024.10.31"]
[EventType "swiss"]
[EventCountry "NED"]
[SourceTitle "playchess.com"]
[Source "ChessBase"]
[SourceQuality "1"]
[TimeControl "5400+30"]

1. d4 {[%emt 0:00:03]} d5 {[%emt 0:00:10]} 2. c4 {[%emt 0:00:43]} e6 {[%emt 0:00:08]} 3. Nc3 {[%emt 0:00:33]} c5 {[%emt 0:00:08]} 4. cxd5 {[%emt 0:01:33]} exd5 {[%emt 0:00:09]} 5. Nf3 {[%emt 0:02:24]} Nf6 {[%emt 0:00:47]} 6. Bg5 {[%emt 0:05:31]} Be6 {[%emt 0:02:22]} 7. dxc5 {[%emt 0:07:55]} Bxc5 {[%emt 0:02:15]} 8. e3 {[%emt 0:04:39]} Nc6 {[%emt 0:07:16]} 9. Be2 {[%emt 0:03:07]} Bb6 {[%emt 0:04:22]} 10. O-O {[%emt 0:01:20]} h6 {[%emt 0:01:34]} 11. Bh4 {[%emt 0:03:32]} g5 {[%emt 0:15:49]} 12. Bg3 {[%emt 0:02:55]} Nh5 {[%emt 0:06:41]} 13. Be5 {[%emt 0:04:55]} Nf6 {[%emt 0:05:10]} 14. Bd4 {[%emt 0:08:43]} Bc7 {[%emt 0:00:59]} 15. Nb5 {[%emt 0:07:31]} Bb8 {[%emt 0:05:03]} 16. Bc3 {[%emt 0:08:05]} Rg8 {[%emt 0:05:17]} 17. Nbd4 {[%emt 0:06:24]} g4 {[%emt 0:03:01]} 18. Nd2 {[%emt 0:06:43]} Bxh2+ {[%emt 0:21:59]} 19. Kxh2 {[%emt 0:00:42]} g3+ {[%emt 0:00:26]} 20. Kg1 {[%emt 0:04:26]} gxf2+ {[%emt 0:04:30]} 21. Rxf2 {[%emt 0:01:12]} Nxd4 {[%emt 0:02:49]} 22. Bxd4 {[%emt 0:02:10]} Ng4 {[%emt 0:00:52]} 23. Bxg4 {[%emt 0:02:48]} Bxg4 {[%emt 0:00:26]} 24. Nf3 {[%emt 0:01:25]} Qd6 {[%emt 0:02:18]} 25. Qa4+ {[%emt 0:00:37]} Bd7 {[%emt 0:00:12]} 26. Qa3 {[%emt 0:00:32]} Qe6 {[%emt 0:02:45]} 27. Ne5 {[%emt 0:00:56]} 1-0

[Event "Amsterdam Chess Open 2024"]
[Site "Amsterdam"]
[Date "2024.11.01"]
[Round "1.23"]
[White "Branco, Moritz"]
[Black "Thorsson, Pall"]
[Result "1-0"]
[ECO "B07"]
[WhiteElo "1720"]
[BlackElo "1826"]
[Annotator "NA RC"]
[PlyCount "35"]
[EventDate "2024.10.31"]
[EventType "swiss"]
[EventCountry "NED"]
[SourceTitle "playchess.com"]
[Source "ChessBase"]
[SourceQuality "1"]
[TimeControl "5400+30"]

1. e4 {[%emt 0:00:10]} d6 {[%emt 0:00:20]} 2. d4 {[%emt 0:00:19]} g6 {[%emt 0:00:09]} 3. Nc3 {[%emt 0:00:32]} Bg7 {[%emt 0:02:20]} 4. Be3 {[%emt 0:00:43]} Nf6 {[%emt 0:00:09]} 5. Qd2 {[%emt 0:00:54]} c6 {[%emt 0:06:29]} 6. Bh6 {[%emt 0:07:41]} Bxh6 {[%emt 0:07:45]} 7. Qxh6 {[%emt 0:01:13]} Qc7 {[%emt 0:04:25]} 8. Nf3 {[%emt 0:09:27]} e5 {[%emt 0:09:42]} 9. Qg7 {[%emt 0:13:37]} Rg8 {[%emt 0:16:16]} 10. Qxf6 {[%emt 0:01:40]} Nd7 {[%emt 0:10:44]} 11. Qg5 {[%emt 0:01:06]} exd4 {[%emt 0:00:23]} 12. Nxd4 {[%emt 0:06:36]} Ne5 {[%emt 0:00:38]} 13. Be2 {[%emt 0:02:55]} Qa5 {[%emt 0:00:23]} 14. Qd2 {[%emt 0:01:55]} Qb4 {[%emt 0:06:10]} 15. Nb3 {[%emt 0:05:38]} Nc4 {[%emt 0:00:45]} 16. Bxc4 {[%emt 0:03:34]} Qxc4 {[%emt 0:00:01]} 17. Qxd6 {[%emt 0:03:22]} Be6 {[%emt 0:00:56]} 18. O-O-O {[%emt 0:01:39]} 1-0

[Event "Amsterdam Chess Open 2024"]
[Site "Amsterdam"]
[Date "2024.11.01"]
[Round "1.24"]
[White "Alamaki, Jaakko"]
[Black "Peter Leijgraaff"]
[Result "1/2-1/2"]
[ECO "D11"]
[WhiteElo "1816"]
[BlackElo "1720"]
[Annotator "NA RC"]
[PlyCount "52"]
[EventDate "2024.10.31"]
[EventType "swiss"]
[EventCountry "NED"]
[SourceTitle "playchess.com"]
[Source "ChessBase"]
[SourceQuality "1"]
[TimeControl "5400+30"]

1. d4 {[%emt 0:00:06]} d5 {[%emt 0:00:19]} 2. Nf3 {[%emt 0:00:10]} Nf6 {[%emt 0:00:07]} 3. c4 {[%emt 0:00:09]} c6 {[%emt 0:00:34]} 4. Nc3 {[%emt 0:00:15]} Bg4 {[%emt 0:00:29]} 5. e3 {[%emt 0:01:13]} h6 {[%emt 0:00:31]} 6. cxd5 {[%emt 0:07:09]} cxd5 {[%emt 0:01:01]} 7. Be2 {[%emt 0:00:22]} e6 {[%emt 0:01:39]} 8. O-O {[%emt 0:00:23]} a6 {[%emt 0:01:52]} 9. Ne5 {[%emt 0:08:37]} Bxe2 {[%emt 0:00:50]} 10. Qxe2 {[%emt 0:00:08]} Bd6 {[%emt 0:00:19]} 11. Rd1 {[%emt 0:01:44]} O-O {[%emt 0:00:26]} 12. Bd2 {[%emt 0:03:24]} Nfd7 {[%emt 0:02:26]} 13. Nd3 {[%emt 0:04:04]} Nc6 {[%emt 0:00:40]} 14. Be1 {[%emt 0:01:48]} Nf6 {[%emt 0:07:02]} 15. f3 {[%emt 0:15:34]} Re8 {[%emt 0:00:13]} 16. Bh4 {[%emt 0:02:09]} Be7 {[%emt 0:00:24]} 17. Bxf6 {[%emt 0:06:45]} Bxf6 {[%emt 0:00:35]} 18. f4 {[%emt 0:00:07]} Be7 {[%emt 0:00:57]} 19. Rd2 {[%emt 0:07:14]} f6 {[%emt 0:04:31]} 20. Rf1 {[%emt 0:01:54]} Nb4 {[%emt 0:03:43]} 21. f5 {[%emt 0:09:49]} Nxd3 {[%emt 0:04:38]} 22. Qxd3 {[%emt 0:00:45]} Bb4 {[%emt 0:00:28]} 23. fxe6 {[%emt 0:02:46]} Rxe6 {[%emt 0:00:31]} 24. Rdf2 {[%emt 0:03:49]} Bxc3 {[%emt 0:01:48]} 25. bxc3 {[%emt 0:00:18]} Rc8 {[%emt 0:00:46]} 26. Rc2 {[%emt 0:06:14]} Qe8 {[%emt 0:01:16]} 1/2-1/2